[Event "Live Chess"]
[Site "Chess.com"]
[Date "2023.05.21"]
[Round "-"]
[White "flyingpuffins"]
[Black "GMHarry-youtube"]
[Result "1-0"]
[WhiteElo "1946"]
[BlackElo "2012"]
[TimeControl "300"]
[EndTime "16:18:23 PDT"]
[Termination "flyingpuffins won by checkmate"]

1. e4 {[%clk 0:04:57.8]} 1... c5 {[%clk 0:04:56.7]} 2. Nf3 {[%clk 0:04:55.7]}
2... d6 {[%clk 0:04:56]} 3. d4 {[%clk 0:04:54.3]} 3... cxd4 {[%clk 0:04:55.9]}
4. Nxd4 {[%clk 0:04:54.2]} 4... Nf6 {[%clk 0:04:54.2]} 5. Nc3 {[%clk 0:04:53.8]}
5... g6 {[%clk 0:04:52.4]} 6. f4 {[%clk 0:04:53.2]} 6... Bg7 {[%clk 0:04:51.7]}
7. e5 {[%clk 0:04:52.8]} 7... dxe5 {[%clk 0:04:50.2]} 8. fxe5 {[%clk 0:04:51.9]}
8... Nfd7 {[%clk 0:04:49.2]} 9. e6 {[%clk 0:04:14.2]} 9... Ne5 {[%clk
0:04:42.5]} 10. exf7+ {[%clk 0:04:12]} 10... Nxf7 {[%clk 0:04:41.7]} 11. Bb5+
{[%clk 0:04:01.8]} 11... Bd7 {[%clk 0:04:39.3]} 12. O-O {[%clk 0:03:57.9]} 12...
Qb6 {[%clk 0:04:16.4]} 13. Be3 {[%clk 0:03:50.5]} 13... Bxb5 {[%clk 0:04:10.3]}
14. Ncxb5 {[%clk 0:03:47.4]} 14... O-O {[%clk 0:04:06.3]} 15. Qd3 {[%clk
0:03:20.6]} 15... Kh8 {[%clk 0:03:58.2]} 16. Nf5 {[%clk 0:03:12.3]} 16... Qf6
{[%clk 0:03:46]} 17. Nxg7 {[%clk 0:03:05.8]} 17... Qxg7 {[%clk 0:03:42.4]} 18.
Nc7 {[%clk 0:03:01.2]} 18... Nc6 {[%clk 0:03:36.9]} 19. Nxa8 {[%clk 0:02:59.8]}
19... Rxa8 {[%clk 0:03:35]} 20. Qb3 {[%clk 0:02:51.2]} 20... Nd6 {[%clk
0:03:30.9]} 21. Kh1 {[%clk 0:02:32.2]} 21... Nf5 {[%clk 0:03:24.5]} 22. Rxf5
{[%clk 0:02:19.8]} 22... gxf5 {[%clk 0:03:20.1]} 23. Qxb7 {[%clk 0:02:19.4]}
23... Rg8 {[%clk 0:02:51.9]} 24. Qxc6 {[%clk 0:02:16.7]} 24... Qxb2 {[%clk
0:02:50.6]} 25. Rg1 {[%clk 0:02:02.1]} 25... Rg6 {[%clk 0:02:32.9]} 26. Qe8+
{[%clk 0:01:57.1]} 26... Rg8 {[%clk 0:02:30.8]} 27. Qxe7 {[%clk 0:01:46.5]}
27... Rg7 {[%clk 0:02:22.2]} 28. Qd8+ {[%clk 0:01:43.2]} 28... Rg8 {[%clk
0:02:18.8]} 29. Bd4+ {[%clk 0:01:42.7]} 29... Qxd4 {[%clk 0:02:18.4]} 30. Qxd4+
{[%clk 0:01:41.5]} 30... Rg7 {[%clk 0:02:18.3]} 31. Re1 {[%clk 0:01:39]} 31...
Kg8 {[%clk 0:02:17.2]} 32. Qxg7+ {[%clk 0:01:34.4]} 32... Kxg7 {[%clk
0:02:16.4]} 33. Re7+ {[%clk 0:01:33.9]} 33... Kh6 {[%clk 0:02:14.9]} 34. Rxa7
{[%clk 0:01:33.8]} 34... Kh5 {[%clk 0:02:04.5]} 35. Rb7 {[%clk 0:01:33.7]} 35...
Kg4 {[%clk 0:02:03.9]} 36. Kg1 {[%clk 0:01:32.4]} 36... h5 {[%clk 0:02:01.6]}
37. Kf2 {[%clk 0:01:31.7]} 37... Kh4 {[%clk 0:02:00.6]} 38. h3 {[%clk
0:01:30.7]} 38... f4 {[%clk 0:01:59.9]} 39. a4 {[%clk 0:01:27.8]} 39... f3
{[%clk 0:01:56.6]} 40. Kxf3 {[%clk 0:01:26.6]} 40... Kg5 {[%clk 0:01:55]} 41. a5
{[%clk 0:01:26.1]} 41... Kh4 {[%clk 0:01:54.9]} 42. a6 {[%clk 0:01:25.6]} 42...
Kg5 {[%clk 0:01:54.3]} 43. a7 {[%clk 0:01:25]} 43... Kh4 {[%clk 0:01:54.2]} 44.
a8=Q {[%clk 0:01:24.1]} 44... Kg5 {[%clk 0:01:54.1]} 45. Qd8+ {[%clk 0:01:22.6]}
45... Kf5 {[%clk 0:01:52.8]} 46. Rb5+ {[%clk 0:01:21.1]} 46... Ke6 {[%clk
0:01:51]} 47. Qb6+ {[%clk 0:01:17.3]} 47... Kd7 {[%clk 0:01:50.5]} 48. Qh6
{[%clk 0:01:16.1]} 48... Ke7 {[%clk 0:01:49.7]} 49. Rb7+ {[%clk 0:01:15]} 49...
Kd8 {[%clk 0:01:48.8]} 50. Kf2 {[%clk 0:00:51.4]} 50... Kc8 {[%clk 0:01:47.1]}
51. Kf1 {[%clk 0:00:51.3]} 51... Kd8 {[%clk 0:01:45.5]} 52. Kg1 {[%clk
0:00:51.2]} 52... Kc8 {[%clk 0:01:45.4]} 53. Kh2 {[%clk 0:00:51.1]} 53... Kd8
{[%clk 0:01:45]} 54. Rg7 {[%clk 0:00:48.6]} 54... Kc8 {[%clk 0:01:44.9]} 55. c3
{[%clk 0:00:46.4]} 55... Kd8 {[%clk 0:01:44.8]} 56. c4 {[%clk 0:00:46.3]} 56...
Kc8 {[%clk 0:01:44.7]} 57. Kg3 {[%clk 0:00:44.3]} 57... Kd8 {[%clk 0:01:44.6]}
58. Kh4 {[%clk 0:00:43.4]} 58... Kc8 {[%clk 0:01:44.5]} 59. Kg5 {[%clk
0:00:42.3]} 59... Kd8 {[%clk 0:01:44.2]} 60. Kg6 {[%clk 0:00:41.9]} 60... Kc8
{[%clk 0:01:44.1]} 61. Kh7 {[%clk 0:00:41.7]} 61... Kd8 {[%clk 0:01:44]} 62. Kh8
{[%clk 0:00:41.5]} 62... Kc8 {[%clk 0:01:43.9]} 63. Kg8 {[%clk 0:00:39.5]} 63...
Kd8 {[%clk 0:01:43.8]} 64. Kf7 {[%clk 0:00:39.2]} 64... Kc8 {[%clk 0:01:43.7]}
65. Qh8+ {[%clk 0:00:37.7]} 65... Kb7 {[%clk 0:01:42.3]} 66. Kg6+ {[%clk
0:00:37.6]} 66... Kb6 {[%clk 0:01:41.6]} 67. Kxh5 {[%clk 0:00:36.6]} 67... Kc5
{[%clk 0:01:41]} 68. Qc8+ {[%clk 0:00:34.9]} 68... Kb4 {[%clk 0:01:40.9]} 69.
Rg8 {[%clk 0:00:33.9]} 69... Kc3 {[%clk 0:01:40.8]} 70. Rg7 {[%clk 0:00:33.2]}
70... Kd4 {[%clk 0:01:40.7]} 71. c5 {[%clk 0:00:32.1]} 71... Kc3 {[%clk
0:01:40.6]} 72. c6 {[%clk 0:00:32]} 72... Kd4 {[%clk 0:01:40]} 73. c7 {[%clk
0:00:31.9]} 73... Kc4 {[%clk 0:01:39.9]} 74. Qd8 {[%clk 0:00:31.1]} 74... Kc5
{[%clk 0:01:39.8]} 75. c8=Q+ {[%clk 0:00:29.9]} 75... Kb5 {[%clk 0:01:39.3]} 76.
Kh6 {[%clk 0:00:28]} 76... Ka4 {[%clk 0:01:36.7]} 77. Kg6 {[%clk 0:00:27.5]}
77... Kb5 {[%clk 0:01:36.6]} 78. Kg5 {[%clk 0:00:26.5]} 78... Ka4 {[%clk
0:01:36.5]} 79. Kg4 {[%clk 0:00:26.3]} 79... Kb5 {[%clk 0:01:36.4]} 80. Kg3
{[%clk 0:00:26.1]} 80... Ka4 {[%clk 0:01:36.3]} 81. Kh2 {[%clk 0:00:25.9]} 81...
Kb5 {[%clk 0:01:36.2]} 82. Kh1 {[%clk 0:00:25.8]} 82... Ka4 {[%clk 0:01:36.1]}
83. Kg1 {[%clk 0:00:25.6]} 83... Kb5 {[%clk 0:01:36]} 84. Kf1 {[%clk 0:00:24.4]}
84... Ka4 {[%clk 0:01:35.9]} 85. Kf2 {[%clk 0:00:24.3]} 85... Kb5 {[%clk
0:01:35.8]} 86. Kf3 {[%clk 0:00:24.2]} 86... Ka4 {[%clk 0:01:35.7]} 87. Kf4
{[%clk 0:00:24.1]} 87... Kb5 {[%clk 0:01:35.6]} 88. Kf5 {[%clk 0:00:24]} 88...
Ka4 {[%clk 0:01:35.5]} 89. Kf6 {[%clk 0:00:23.9]} 89... Kb5 {[%clk 0:01:35.4]}
90. Kf7 {[%clk 0:00:23.2]} 90... Ka4 {[%clk 0:01:35.3]} 91. Kf8 {[%clk
0:00:23.1]} 91... Kb5 {[%clk 0:01:35.2]} 92. Ke8 {[%clk 0:00:22.5]} 92... Ka4
{[%clk 0:01:35.1]} 93. Ke7 {[%clk 0:00:22.2]} 93... Kb5 {[%clk 0:01:35]} 94. Ke6
{[%clk 0:00:22.1]} 94... Ka4 {[%clk 0:01:34.9]} 95. Ke5 {[%clk 0:00:22]} 95...
Kb5 {[%clk 0:01:34.8]} 96. Ke4 {[%clk 0:00:21.8]} 96... Ka4 {[%clk 0:01:34.7]}
97. Ke3 {[%clk 0:00:21.3]} 97... Kb5 {[%clk 0:01:34.6]} 98. Ke2 {[%clk
0:00:21.2]} 98... Ka4 {[%clk 0:01:34.5]} 99. Ke1 {[%clk 0:00:20.8]} 99... Kb5
{[%clk 0:01:34.4]} 100. Kd1 {[%clk 0:00:20.3]} 100... Ka4 {[%clk 0:01:34.3]}
101. Kd2 {[%clk 0:00:19.9]} 101... Kb5 {[%clk 0:01:34.2]} 102. Rb7+ {[%clk
0:00:16.8]} 102... Ka4 {[%clk 0:01:34.1]} 103. Qa8# {[%clk 0:00:16.6]} 1-0

[Event "Live Chess"]
[Site "Chess.com"]
[Date "2023.05.21"]
[Round "-"]
[White "1600x"]
[Black "Hussamalhaidar"]
[Result "1-0"]
[WhiteElo "1826"]
[BlackElo "1039"]
[TimeControl "300"]
[EndTime "16:18:24 PDT"]
[Termination "1600x won on time"]

1. d4 {[%clk 0:04:58.2]} 1... e5 {[%clk 0:04:55.4]} 2. e4 {[%clk 0:04:58.1]}
2... exd4 {[%clk 0:04:50.9]} 3. Nf3 {[%clk 0:04:53.7]} 3... Nf6 {[%clk
0:04:46.7]} 4. e5 {[%clk 0:04:51.7]} 4... Ne4 {[%clk 0:04:40.3]} 5. Qxd4 {[%clk
0:04:48.4]} 5... Nc5 {[%clk 0:04:24]} 6. Bg5 {[%clk 0:04:45.2]} 6... f6 {[%clk
0:04:18]} 7. Bc4 {[%clk 0:04:30.8]} 7... fxg5 {[%clk 0:04:05.2]} 8. Nc3 {[%clk
0:04:28.3]} 8... Nc6 {[%clk 0:03:55.3]} 9. Qg4 {[%clk 0:04:24.2]} 9... d5 {[%clk
0:03:34.8]} 10. Qxg5 {[%clk 0:04:16.4]} 10... Qxg5 {[%clk 0:03:30.9]} 11. Nxg5
{[%clk 0:04:16.3]} 11... dxc4 {[%clk 0:03:28.2]} 12. Nb5 {[%clk 0:04:13.4]}
12... Na6 {[%clk 0:03:17.5]} 13. Kf1 {[%clk 0:04:09.8]} 13... Bc5 {[%clk
0:02:50.4]} 14. f4 {[%clk 0:04:07.5]} 14... h6 {[%clk 0:02:45.1]} 15. Nf3 {[%clk
0:04:06.2]} 15... Bg4 {[%clk 0:02:35.1]} 16. Ke2 {[%clk 0:04:01.4]} 16... Nd4+
{[%clk 0:02:30.4]} 17. Nxd4 {[%clk 0:03:55.7]} 17... Bxd4 {[%clk 0:02:28.7]} 18.
c3 {[%clk 0:03:45.6]} 18... Bc5 {[%clk 0:02:13.7]} 19. g3 {[%clk 0:03:41.7]}
19... O-O-O {[%clk 0:02:09.3]} 20. Rac1 {[%clk 0:03:39.1]} 20... Bxf3+ {[%clk
0:02:04.2]} 21. Kxf3 {[%clk 0:03:35.6]} 21... Rd2 {[%clk 0:01:58]} 22. b4 {[%clk
0:03:28.4]} 22... cxb3 {[%clk 0:01:53.3]} 23. axb3 {[%clk 0:03:23]} 23... Rf2+
{[%clk 0:01:44.6]} 24. Ke4 {[%clk 0:03:19.8]} 24... Be7 {[%clk 0:01:24]} 25. b4
{[%clk 0:03:17]} 25... Rd8 {[%clk 0:01:18.7]} 26. Rcf1 {[%clk 0:03:11.9]} 26...
Re2+ {[%clk 0:01:13.9]} 27. Kf3 {[%clk 0:03:08.9]} 27... Rc2 {[%clk 0:01:10.6]}
28. Rc1 {[%clk 0:03:06]} 28... Rd3+ {[%clk 0:01:07.2]} 29. Kg4 {[%clk 0:03:00]}
29... Rdxc3 {[%clk 0:00:59.9]} 30. Rxc2 {[%clk 0:02:55.8]} 30... Rxc2 {[%clk
0:00:58.4]} 31. b5 {[%clk 0:02:52.8]} 31... Nc5 {[%clk 0:00:56.1]} 32. h4 {[%clk
0:02:49.1]} 32... Rb2 {[%clk 0:00:54.7]} 33. Ra1 {[%clk 0:02:42.3]} 33... Rxb5
{[%clk 0:00:50.8]} 34. Rxa7 {[%clk 0:02:36.7]} 34... Ne4 {[%clk 0:00:47.1]} 35.
Ra8+ {[%clk 0:02:33.9]} 35... Kd7 {[%clk 0:00:45.4]} 36. Kf3 {[%clk 0:02:31.2]}
36... Nd2+ {[%clk 0:00:42.6]} 37. Kg2 {[%clk 0:02:29.8]} 37... c5 {[%clk
0:00:41.5]} 38. Ra2 {[%clk 0:02:25.8]} 38... Ne4 {[%clk 0:00:36.2]} 39. Re2
{[%clk 0:02:24.2]} 39... c4 {[%clk 0:00:31.9]} 40. Rxe4 {[%clk 0:02:22.8]} 40...
c3 {[%clk 0:00:31.2]} 41. Rc4 {[%clk 0:02:21.4]} 41... Rb2+ {[%clk 0:00:29.6]}
42. Kf1 {[%clk 0:02:15]} 42... c2 {[%clk 0:00:28.4]} 43. f5 {[%clk 0:02:10.3]}
43... Rb1+ {[%clk 0:00:26.8]} 44. Kf2 {[%clk 0:02:06.7]} 44... c1=Q {[%clk
0:00:25.1]} 45. Rxc1 {[%clk 0:02:04.5]} 45... Rxc1 {[%clk 0:00:24.2]} 46. Kf3
{[%clk 0:02:01.5]} 46... Rc3+ {[%clk 0:00:23]} 47. Kg4 {[%clk 0:02:00.3]} 47...
b5 {[%clk 0:00:21.7]} 48. Kh3 {[%clk 0:01:58]} 48... b4 {[%clk 0:00:21.2]} 49.
Kg4 {[%clk 0:01:55.4]} 49... b3 {[%clk 0:00:20.9]} 50. Kh5 {[%clk 0:01:52.6]}
50... b2 {[%clk 0:00:20.1]} 51. Kg6 {[%clk 0:01:50.6]} 51... Bf8 {[%clk
0:00:18.8]} 52. Kf7 {[%clk 0:01:49.1]} 52... b1=Q {[%clk 0:00:16.3]} 53. g4
{[%clk 0:01:46.9]} 53... Qe4 {[%clk 0:00:14.2]} 54. e6+ {[%clk 0:01:44.9]} 54...
Kd8 {[%clk 0:00:12]} 55. Kxf8 {[%clk 0:01:42.4]} 55... Rc7 {[%clk 0:00:11.2]}
56. e7+ {[%clk 0:01:39.8]} 56... Rxe7 {[%clk 0:00:10]} 57. Kg8 {[%clk
0:01:37.5]} 57... Re8+ {[%clk 0:00:08.3]} 58. Kxg7 {[%clk 0:01:34.9]} 58... Qe5+
{[%clk 0:00:07.2]} 59. f6 {[%clk 0:01:33.7]} 59... Qc7+ {[%clk 0:00:02.6]} 60.
Kxh6 {[%clk 0:01:30.1]} 60... Rg8 {[%clk 0:00:01.1]} 61. Kh5 {[%clk 0:01:27.1]}
1-0

[Event "Live Chess"]
[Site "Chess.com"]
[Date "2023.05.21"]
[Round "-"]
[White "LL220284LL"]
[Black "Conradical12"]
[Result "1-0"]
[WhiteElo "2391"]
[BlackElo "1608"]
[TimeControl "300"]
[EndTime "16:18:33 PDT"]
[Termination "LL220284LL won by resignation"]

1. e3 {[%clk 0:04:57.1]} 1... e5 {[%clk 0:04:59.5]} 2. b3 {[%clk 0:04:56.4]}
2... Nc6 {[%clk 0:04:59]} 3. Bb2 {[%clk 0:04:56]} 3... Bc5 {[%clk 0:04:58.3]} 4.
d4 {[%clk 0:04:54.2]} 4... exd4 {[%clk 0:04:57.1]} 5. exd4 {[%clk 0:04:54.1]}
5... Bd6 {[%clk 0:04:56.1]} 6. Nf3 {[%clk 0:04:53.4]} 6... Nf6 {[%clk
0:04:55.5]} 7. d5 {[%clk 0:04:52]} 7... Ne7 {[%clk 0:04:53.2]} 8. c4 {[%clk
0:04:51.4]} 8... Ng6 {[%clk 0:04:51.3]} 9. Bd3 {[%clk 0:04:50.1]} 9... Qe7+
{[%clk 0:04:47.7]} 10. Be2 {[%clk 0:04:45.4]} 10... Nf4 {[%clk 0:04:44.7]} 11.
Nc3 {[%clk 0:04:42.2]} 11... Bc5 {[%clk 0:04:41.7]} 12. O-O {[%clk 0:04:40]}
12... Ng4 {[%clk 0:04:40]} 13. d6 {[%clk 0:04:25.9]} 13... cxd6 {[%clk
0:04:38.4]} 14. Nd5 {[%clk 0:04:23.8]} 14... Nxd5 {[%clk 0:04:36.6]} 15. Qxd5
{[%clk 0:04:22.4]} 15... O-O {[%clk 0:04:35.4]} 16. Bd3 {[%clk 0:04:19.2]} 16...
Rb8 {[%clk 0:04:30.2]} 17. Qf5 {[%clk 0:04:17.8]} 17... Nf6 {[%clk 0:04:26.2]}
18. Bxf6 {[%clk 0:04:16.5]} 1-0

[Event "Live Chess"]
[Site "Chess.com"]
[Date "2023.05.21"]
[Round "-"]
[White "JohanKjeldahl"]
[Black "jimwad"]
[Result "1-0"]
[WhiteElo "1874"]
[BlackElo "1209"]
[TimeControl "300"]
[EndTime "16:18:34 PDT"]
[Termination "JohanKjeldahl won by resignation"]

1. e4 {[%clk 0:04:57.2]} 1... e5 {[%clk 0:04:58.8]} 2. Nf3 {[%clk 0:04:55.4]}
2... Nc6 {[%clk 0:04:57.5]} 3. d4 {[%clk 0:04:54.3]} 3... exd4 {[%clk
0:04:55.3]} 4. c3 {[%clk 0:04:53.5]} 4... dxc3 {[%clk 0:04:54]} 5. Bc4 {[%clk
0:04:52.2]} 5... Nf6 {[%clk 0:04:42.6]} 6. Nxc3 {[%clk 0:04:49.3]} 6... Bb4
{[%clk 0:04:38.1]} 7. O-O {[%clk 0:04:47.5]} 7... O-O {[%clk 0:04:36.3]} 8. e5
{[%clk 0:04:43.6]} 8... Ng4 {[%clk 0:04:34.5]} 9. Bf4 {[%clk 0:04:40.6]} 9...
Bxc3 {[%clk 0:04:22.1]} 10. bxc3 {[%clk 0:04:38.5]} 10... d6 {[%clk 0:04:20.4]}
11. exd6 {[%clk 0:04:33.7]} 11... cxd6 {[%clk 0:04:18.7]} 12. Qxd6 {[%clk
0:04:27.9]} 12... Qxd6 {[%clk 0:04:17.1]} 13. Bxd6 {[%clk 0:04:26.8]} 13... Re8
{[%clk 0:04:15.9]} 14. Rad1 {[%clk 0:04:20.2]} 14... Be6 {[%clk 0:04:08.7]} 15.
Bxe6 {[%clk 0:04:14.9]} 15... Rxe6 {[%clk 0:04:05.3]} 16. h3 {[%clk 0:04:13]}
16... Nf6 {[%clk 0:04:03.6]} 17. Ng5 {[%clk 0:04:04.2]} 17... Re7 {[%clk
0:04:00]} 18. Bxe7 {[%clk 0:04:02.1]} 1-0

[Event "Live Chess"]
[Site "Chess.com"]
[Date "2023.05.21"]
[Round "-"]
[White "LiamBellwood"]
[Black "Jo1ts"]
[Result "1-0"]
[WhiteElo "2060"]
[BlackElo "776"]
[TimeControl "300"]
[EndTime "16:18:35 PDT"]
[Termination "LiamBellwood won by resignation"]

1. d4 {[%clk 0:04:58.4]} 1... d5 {[%clk 0:04:54.4]} 2. Nc3 {[%clk 0:04:56.7]}
2... c5 {[%clk 0:04:49.3]} 3. e4 {[%clk 0:04:54.1]} 3... Nc6 {[%clk 0:04:43.5]}
4. exd5 {[%clk 0:04:51.9]} 4... Nxd4 {[%clk 0:04:39.1]} 5. Be3 {[%clk
0:04:51.5]} 5... Nf5 {[%clk 0:04:28.5]} 6. Bb5+ {[%clk 0:04:50.2]} 6... Bd7
{[%clk 0:04:24.9]} 7. Bxd7+ {[%clk 0:04:47.3]} 7... Qxd7 {[%clk 0:04:24.8]} 8.
Bxc5 {[%clk 0:04:43.9]} 8... Nf6 {[%clk 0:04:17.8]} 9. Nf3 {[%clk 0:04:38.8]}
9... Nxd5 {[%clk 0:04:16]} 10. Qxd5 {[%clk 0:04:37]} 10... Qxd5 {[%clk
0:04:09.5]} 11. Nxd5 {[%clk 0:04:36.9]} 1-0

[Event "Live Chess"]
[Site "Chess.com"]
[Date "2023.05.21"]
[Round "-"]
[White "CameronM1234"]
[Black "ms_lilley"]
[Result "1-0"]
[WhiteElo "1096"]
[BlackElo "587"]
[TimeControl "300"]
[EndTime "16:18:36 PDT"]
[Termination "CameronM1234 won by checkmate"]

1. e4 {[%clk 0:04:58.7]} 1... e6 {[%clk 0:04:58.5]} 2. d3 {[%clk 0:04:55.9]}
2... c6 {[%clk 0:04:56.8]} 3. Nf3 {[%clk 0:04:54.1]} 3... h6 {[%clk 0:04:55.1]}
4. g3 {[%clk 0:04:53.1]} 4... Nf6 {[%clk 0:04:53.7]} 5. Bg2 {[%clk 0:04:52.1]}
5... d5 {[%clk 0:04:50.4]} 6. e5 {[%clk 0:04:51]} 6... Ng4 {[%clk 0:04:44.6]} 7.
d4 {[%clk 0:04:48.6]} 7... Nd7 {[%clk 0:04:33.8]} 8. h3 {[%clk 0:04:47.1]} 8...
Ngxe5 {[%clk 0:04:25.9]} 9. dxe5 {[%clk 0:04:45.7]} 9... Nxe5 {[%clk 0:04:18.9]}
10. Nxe5 {[%clk 0:04:44.5]} 10... Bc5 {[%clk 0:04:13.4]} 11. O-O {[%clk
0:04:39.8]} 11... O-O {[%clk 0:04:11.3]} 12. a3 {[%clk 0:04:33.9]} 12... Qf6
{[%clk 0:04:08.1]} 13. Nd3 {[%clk 0:04:21.8]} 13... b6 {[%clk 0:03:57.4]} 14.
Nxc5 {[%clk 0:04:19.6]} 14... bxc5 {[%clk 0:03:55.7]} 15. Nc3 {[%clk 0:04:12.3]}
15... d4 {[%clk 0:03:51.8]} 16. Ne4 {[%clk 0:04:09.1]} 16... Qe5 {[%clk
0:03:41.9]} 17. Re1 {[%clk 0:03:53.2]} 17... Ba6 {[%clk 0:03:39]} 18. Bf4 {[%clk
0:03:47.5]} 18... Qf6 {[%clk 0:03:24.6]} 19. Nxf6+ {[%clk 0:03:45.8]} 19... gxf6
{[%clk 0:03:22.7]} 20. Bxh6 {[%clk 0:03:43.9]} 20... Rfd8 {[%clk 0:03:18.8]} 21.
Qg4+ {[%clk 0:03:40.4]} 21... Kh7 {[%clk 0:03:15.1]} 22. Qg7# {[%clk 0:03:40.3]}
1-0

[Event "Live Chess"]
[Site "Chess.com"]
[Date "2023.05.21"]
[Round "-"]
[White "ZackirtyChess"]
[Black "martynstanley"]
[Result "0-1"]
[WhiteElo "1159"]
[BlackElo "1031"]
[TimeControl "300"]
[EndTime "16:18:47 PDT"]
[Termination "martynstanley won by checkmate"]

1. e4 {[%clk 0:04:56.9]} 1... e6 {[%clk 0:04:59.5]} 2. d4 {[%clk 0:04:55.1]}
2... d6 {[%clk 0:04:58.8]} 3. c4 {[%clk 0:04:49.2]} 3... c5 {[%clk 0:04:58.1]}
4. Nf3 {[%clk 0:04:46.1]} 4... Nc6 {[%clk 0:04:57.3]} 5. d5 {[%clk 0:04:44]}
5... Qa5+ {[%clk 0:04:55.9]} 6. Nc3 {[%clk 0:04:40.4]} 6... Nd4 {[%clk
0:04:54.3]} 7. Nxd4 {[%clk 0:04:35.1]} 7... cxd4 {[%clk 0:04:53.5]} 8. Qxd4
{[%clk 0:04:34.5]} 8... e5 {[%clk 0:04:51.8]} 9. Qd3 {[%clk 0:04:31.5]} 9... Ne7
{[%clk 0:04:48.4]} 10. Be3 {[%clk 0:04:26.9]} 10... Ng6 {[%clk 0:04:46.6]} 11.
Be2 {[%clk 0:04:22.7]} 11... Nf4 {[%clk 0:04:45.6]} 12. Bxf4 {[%clk 0:04:20.6]}
12... exf4 {[%clk 0:04:44.4]} 13. O-O {[%clk 0:04:19]} 13... g5 {[%clk
0:04:43.4]} 14. e5 {[%clk 0:04:12.2]} 14... Qc7 {[%clk 0:04:43.2]} 15. exd6
{[%clk 0:04:09.6]} 15... Bxd6 {[%clk 0:04:42]} 16. Qd4 {[%clk 0:04:04.6]} 16...
b6 {[%clk 0:04:41]} 17. Qxh8+ {[%clk 0:04:02.7]} 17... Kd7 {[%clk 0:04:39.2]}
18. Bg4+ {[%clk 0:03:59.6]} 18... Ke7 {[%clk 0:04:37.5]} 19. Qxh7 {[%clk
0:03:54.3]} 19... Bxg4 {[%clk 0:04:34.9]} 20. Qe4+ {[%clk 0:03:51.2]} 20... Kd7
{[%clk 0:04:32.4]} 21. f3 {[%clk 0:03:49.8]} 21... Bh5 {[%clk 0:04:27.2]} 22.
Qh7 {[%clk 0:03:47.7]} 22... Bg6 {[%clk 0:04:25.1]} 23. Qh6 {[%clk 0:03:44.6]}
23... Rg8 {[%clk 0:04:21]} 24. h4 {[%clk 0:03:40.5]} 24... gxh4 {[%clk
0:04:18.4]} 25. Qxh4 {[%clk 0:03:39.9]} 25... Qd8 {[%clk 0:04:17.8]} 26. Qxd8+
{[%clk 0:03:35.2]} 26... Rxd8 {[%clk 0:04:16.4]} 27. Rfe1 {[%clk 0:03:35.1]}
27... Rh8 {[%clk 0:04:14.7]} 28. Re2 {[%clk 0:03:30]} 28... Bd3 {[%clk 0:04:13]}
29. Rd2 {[%clk 0:03:25.9]} 29... Bxc4 {[%clk 0:04:11.9]} 30. b3 {[%clk
0:03:22.3]} 30... Ba6 {[%clk 0:04:09.9]} 31. Rad1 {[%clk 0:03:18.5]} 31... b5
{[%clk 0:04:08.1]} 32. a4 {[%clk 0:03:13.2]} 32... b4 {[%clk 0:04:06.8]} 33. Na2
{[%clk 0:03:11.9]} 33... Bb7 {[%clk 0:04:01.2]} 34. Rd4 {[%clk 0:03:06.5]} 34...
a5 {[%clk 0:04:00.1]} 35. Kf2 {[%clk 0:03:01.5]} 35... Ba6 {[%clk 0:03:58.5]}
36. Re1 {[%clk 0:02:50.4]} 36... Re8 {[%clk 0:03:55.2]} 37. Rxe8 {[%clk
0:02:46.5]} 37... Kxe8 {[%clk 0:03:54.1]} 38. Re4+ {[%clk 0:02:42.7]} 38... Kd7
{[%clk 0:03:52.6]} 39. Nc1 {[%clk 0:02:39]} 39... Be7 {[%clk 0:03:48.9]} 40. Nd3
{[%clk 0:02:29.4]} 40... Bxd3 {[%clk 0:03:46.5]} 41. Rxf4 {[%clk 0:02:28.1]}
41... f6 {[%clk 0:03:44.9]} 42. Rd4 {[%clk 0:02:24.8]} 42... Bc2 {[%clk
0:03:43.8]} 43. Rd2 {[%clk 0:02:23.3]} 43... Bxb3 {[%clk 0:03:42.8]} 44. Rd3
{[%clk 0:02:14.2]} 44... Bxa4 {[%clk 0:03:41.2]} 45. Ke3 {[%clk 0:02:13.1]}
45... Bb5 {[%clk 0:03:40.1]} 46. Rd4 {[%clk 0:02:09.8]} 46... Kd6 {[%clk
0:03:38.8]} 47. g4 {[%clk 0:02:08.2]} 47... Kc5 {[%clk 0:03:36.9]} 48. Rd1
{[%clk 0:02:01.6]} 48... Bc4 {[%clk 0:03:34.8]} 49. Ke4 {[%clk 0:01:56]} 49...
Bd6 {[%clk 0:03:32.6]} 50. f4 {[%clk 0:01:52.4]} 50... b3 {[%clk 0:03:29.7]} 51.
g5 {[%clk 0:01:50]} 51... fxg5 {[%clk 0:03:28.6]} 52. fxg5 {[%clk 0:01:48.9]}
52... Bf8 {[%clk 0:03:24.4]} 53. g6 {[%clk 0:01:45.7]} 53... a4 {[%clk 0:03:23]}
54. Rf1 {[%clk 0:01:40.8]} 54... Bg7 {[%clk 0:03:21.1]} 55. Rf7 {[%clk
0:01:38.4]} 55... Bxd5+ {[%clk 0:03:19.7]} 56. Kf5 {[%clk 0:01:36]} 56... Bxf7
{[%clk 0:03:18.6]} 57. gxf7 {[%clk 0:01:34.7]} 57... b2 {[%clk 0:03:16.3]} 58.
Kg6 {[%clk 0:01:33.3]} 58... Bf8 {[%clk 0:03:14.3]} 59. Kh7 {[%clk 0:01:31.9]}
59... Bd6 {[%clk 0:03:13.3]} 60. Kg8 {[%clk 0:01:31]} 60... b1=Q {[%clk
0:03:11.3]} 61. Kh8 {[%clk 0:01:29.9]} 61... Qb2+ {[%clk 0:03:08.7]} 62. Kg8
{[%clk 0:01:28.5]} 62... a3 {[%clk 0:03:07.6]} 63. Kh7 {[%clk 0:01:26]} 63... a2
{[%clk 0:03:06.6]} 64. Kg8 {[%clk 0:01:25.2]} 64... a1=Q {[%clk 0:03:04.9]} 65.
f8=Q {[%clk 0:01:23.7]} 65... Bxf8 {[%clk 0:03:03.6]} 66. Kxf8 {[%clk
0:01:21.4]} 66... Qe2 {[%clk 0:03:02.1]} 67. Kf7 {[%clk 0:01:20.3]} 67... Qaf1+
{[%clk 0:03:01.6]} 68. Kg6 {[%clk 0:01:18.7]} 68... Qeg2+ {[%clk 0:03:01.2]} 69.
Kh5 {[%clk 0:01:17.5]} 69... Qfh1# {[%clk 0:03:00.4]} 0-1